Body Name,Service Code,Expenditure Category,Payment Date,Transaction Number,Supplier,Net Amount
Barrow Borough Council,Dock museum,Professional fees,10-Sep-2020,200048840,The Fairly Famous Family,600.00
Barrow Borough Council,Forum 28,Buildings repairs and maintenance,24-Sep-2020,200049018,FTS Fire & Secuirty Ltd,618.00
Barrow Borough Council,The markets,Electricity,03-Sep-2020,200048809,NPower,898.76
Barrow Borough Council,Marina Village,Professional fees,17-Sep-2020,200048972,Capita Property & Infrastructure Ltd,"23,492.43"
Barrow Borough Council,Development control,Agency staff,24-Sep-2020,200049044,G2 Recruitment Solutions,987.65
Barrow Borough Council,The markets,Electricity,24-Sep-2020,200049028,NPower,910.65
Barrow Borough Council,Disabled Facilities Grant,Grants,17-Sep-2020,200048898,PPM Ltd,"3,540.00"
Barrow Borough Council,Harding Rise Business Centre,Water,17-Sep-2020,200048987,Water Plus Ltd,-501.34
Barrow Borough Council,Registration of electors,Printing and stationery,24-Sep-2020,200048995,Democracy Counts Ltd,555.65
Barrow Borough Council,Capitalised Planned Maintenance,Rewires,10-Sep-2020,200048835,Keith Wilson Elec Con Ltd,"9,719.84"
Barrow Borough Council,Barrow Island Growth Zone,Professional fees,17-Sep-2020,200048923,Pettit Singleton Assoc,"6,480.00"
Barrow Borough Council,Dock museum,Electricity,24-Sep-2020,200049028,NPower,"2,256.98"
Barrow Borough Council,Forum 28,Electricity,03-Sep-2020,200048809,NPower,"3,409.97"
Barrow Borough Council,Forum 28,Maintenance contracts - TSU,24-Sep-2020,200049005,Integral UK Ltd,"1,104.26"
Barrow Borough Council,Forum 28,Maintenance contracts - TSU,03-Sep-2020,200048778,ADW Consultants Ltd,"1,246.05"
Barrow Borough Council,Voids maintenance - HRA,Void repairs,10-Sep-2020,200048889,Hughes Brothers,"2,566.08"
Barrow Borough Council,HRA Estates,Cleaning - other,17-Sep-2020,200048965,Associated Cleaning Contractors,"3,968.65"
Barrow Borough Council,Capitalised Planned Maintenance,Doors and windows,24-Sep-2020,200048991,SBP Ltd - Permadoor,"6,034.08"
Barrow Borough Council,Disabled Facilities Grant,Grants,10-Sep-2020,200048821,Lee Bowron Glazing Ltd,"3,725.00"
Barrow Borough Council,Current liabilities - creditors,Government creditors - cumbria county council,24-Sep-2020,200048996,Cumbria County Council,"158,997.09"
Barrow Borough Council,Barrow town hall,Maintenance contracts - TSU,24-Sep-2020,200049005,Integral UK Ltd,516.52
Barrow Borough Council,Housing repairs control account,Housing repairs invoices,10-Sep-2020,200048889,Hughes Brothers,"3,769.60"
Barrow Borough Council,Forum 28,Gas,03-Sep-2020,200048772,Corona Energy,"1,398.48"
Barrow Borough Council,Forum 28,Maintenance contracts - TSU,24-Sep-2020,200049005,Integral UK Ltd,"1,104.26"
Barrow Borough Council,Crematorium,Grounds maintenance - other works,10-Sep-2020,200048843,Continental Landscapes Ltd,"1,769.88"
Barrow Borough Council,Crematorium,Gas,03-Sep-2020,200048772,Corona Energy,"2,353.47"
Barrow Borough Council,Salthouse Road Depot,Water,03-Sep-2020,200048781,Water Plus Ltd,"4,627.00"
Barrow Borough Council,Disabled Facilities Grant,Grants,17-Sep-2020,200048954,Lee Bowron Glazing Ltd,"4,335.00"
Barrow Borough Council,Playground,Parks & Playgrounds Inspections & maintenance - contract,03-Sep-2020,200048792,Continental Landscapes Ltd,"15,694.42"
Barrow Borough Council,Capitalised Planned Maintenance,Heating,10-Sep-2020,200048887,Sure Maintenance,"18,573.24"
Barrow Borough Council,Dock museum,Maintenance contracts - TSU,24-Sep-2020,200049005,Integral UK Ltd,585.97
Barrow Borough Council,Craven house,Electricity,03-Sep-2020,200048809,NPower,"6,064.46"
Barrow Borough Council,Harding Rise Business Centre,Water,17-Sep-2020,200048987,Water Plus Ltd,881.08
Barrow Borough Council,Dock museum,Maintenance contracts - TSU,24-Sep-2020,200049005,Integral UK Ltd,585.97
Barrow Borough Council,Work in default,WID works,17-Sep-2020,200048944,Phoenix Cleaning Agency,"2,000.00"
Barrow Borough Council,Barrow town hall,Maintenance contracts - TSU,24-Sep-2020,200049005,Integral UK Ltd,516.52
Barrow Borough Council,Barrow town hall,Buildings repairs and maintenance,03-Sep-2020,200048816,TESGL Ltd,688.00
Barrow Borough Council,Harding Rise Business Centre,Gas,10-Sep-2020,200048891,Corona Energy,532.50
Barrow Borough Council,Marina Village,Professional fees,03-Sep-2020,200048782,WYG Environment Planning Transport Ltd,"1,400.00"
Barrow Borough Council,Dock museum,Buildings repairs and maintenance,17-Sep-2020,200048971,Hughes Brothers,548.87
Barrow Borough Council,Development control,Professional fees,03-Sep-2020,200048784,Iron Mountain (UK) Ltd,"7,014.47"
Barrow Borough Council,Human Resources,Professional fees,03-Sep-2020,200048774,Frontier Software Plc,650.00
Barrow Borough Council,Barrow town hall,Buildings repairs and maintenance,03-Sep-2020,200048803,FTS Fire & Secuirty Ltd,"1,048.00"
Barrow Borough Council,Housing repairs control account,Housing repairs invoices,03-Sep-2020,200048771,PJ Smith (Garafix) Ltd,730.00
Barrow Borough Council,Crematorium,Electricity,24-Sep-2020,200049028,NPower,"1,097.53"
Barrow Borough Council,Allotments,Water,24-Sep-2020,200049034,Water Plus Ltd,"1,160.65"
Barrow Borough Council,Regeneration,Professional fees,10-Sep-2020,200048883,Capita Property & Infrastructure Ltd,"3,195.00"
Barrow Borough Council,Capitalised Planned Maintenance,Rewires,10-Sep-2020,200048835,Keith Wilson Elec Con Ltd,"2,567.76"
Barrow Borough Council,Disabled Facilities Grant,Grants,17-Sep-2020,200048949,Benchmark Building Serv UK Ltd,"2,710.00"
Barrow Borough Council,Dock museum,Building cleaning,24-Sep-2020,200048989,Elior UK Ltd,"1,479.26"
Barrow Borough Council,Dock museum,Maintenance contracts - TSU,24-Sep-2020,200049005,Integral UK Ltd,585.97
Barrow Borough Council,Forum 28,Electricity,24-Sep-2020,200049028,NPower,"3,583.96"
Barrow Borough Council,Private sector housing,Solicitors fees,17-Sep-2020,200048931,Brown Barron Solicitors,511.50
Barrow Borough Council,Forum 28,Cleaning materials,24-Sep-2020,200048989,Elior UK Ltd,"1,249.86"
Barrow Borough Council,Homelessness,Homeless support funding,17-Sep-2020,200048974,Redacted Information,"4,380.00"
Barrow Borough Council,Information technology,Data Line Rental,03-Sep-2020,200048775,Liberata Uk Ltd,784.46
Barrow Borough Council,Telephones Holding A/C,Telephone charges paid,17-Sep-2020,200048955,EE Ltd,"1,602.04"
Barrow Borough Council,Planning Policy,Solicitors fees,17-Sep-2020,200048931,Brown Barron Solicitors,"2,343.00"
Barrow Borough Council,Tenant demand maintenance - HRA,Central overheads,17-Sep-2020,200048971,Hughes Brothers,"28,550.68"
Barrow Borough Council,Forum 28,Maintenance contracts - TSU,24-Sep-2020,200049005,Integral UK Ltd,"1,104.26"
Barrow Borough Council,Housing repairs control account,Housing repairs invoices,10-Sep-2020,200048889,Hughes Brothers,"4,665.04"
Barrow Borough Council,Allotments,Water,24-Sep-2020,200049034,Water Plus Ltd,"1,525.77"
Barrow Borough Council,Capitalised Planned Maintenance,Rewires,10-Sep-2020,200048885,Rexel UK Ltd,559.87
Barrow Borough Council,Housing repairs control account,Housing repairs invoices,03-Sep-2020,200048791,Howdens Joinery Ltd,791.46
Barrow Borough Council,Cyclical maintenance - HRA,Painting,10-Sep-2020,200048834,George Jones & Son (Contractors) Ltd,"11,351.58"
Barrow Borough Council,Cost of collection,Council tax collection,10-Sep-2020,200048881,Liberata Uk Ltd,"1,097.26"
Barrow Borough Council,Dock museum,Licences,24-Sep-2020,200049032,Fat Media Ltd,600.00
Barrow Borough Council,Development control,Listed buildings grant,10-Sep-2020,200048858,P Griffiths,"1,500.00"
Barrow Borough Council,Development control,Agency staff,17-Sep-2020,200048896,G2 Recruitment Solutions,861.78
Barrow Borough Council,Office support - admin,Photocopier rental,24-Sep-2020,200049029,Ricoh UK Ltd,941.94
Barrow Borough Council,Harding Rise Business Centre,Electricity,24-Sep-2020,200049028,NPower,579.63
Barrow Borough Council,Voids maintenance - HRA,Void repairs,10-Sep-2020,200048889,Hughes Brothers,"17,742.22"
Barrow Borough Council,Corporate management,Professional fees,10-Sep-2020,200048868,32West Ltd,"4,712.50"
Barrow Borough Council,Work in default,Professional fees,03-Sep-2020,200048804,Pickerings Scaffolding Ltd,825.00
Barrow Borough Council,Salthouse Road Depot,Electricity,03-Sep-2020,200048809,NPower,733.93
Barrow Borough Council,Barrow town hall,Electricity,24-Sep-2020,200049028,NPower,"2,159.30"
Barrow Borough Council,Housing repairs control account,Housing repairs invoices,24-Sep-2020,200048993,Dolphin Stairlifts Cumbria,"1,745.00"
Barrow Borough Council,Tenant demand maintenance - HRA,Consultancy fees,17-Sep-2020,200048968,Procure Plus Ltd,"6,439.68"
Barrow Borough Council,Dock museum,Maintenance contracts - TSU,24-Sep-2020,200049005,Integral UK Ltd,585.97
Barrow Borough Council,The park leisure centre,Professional fees,03-Sep-2020,200048787,The Sport Leisure & Culture Consultancy Ltd,"1,000.00"
Barrow Borough Council,Barrow park,Water,24-Sep-2020,200049034,Water Plus Ltd,958.90
Barrow Borough Council,Barrow town hall,Building cleaning,17-Sep-2020,200048965,Associated Cleaning Contractors,"4,589.22"
Barrow Borough Council,Cemeteries,Grounds maintenance - schedule of works,10-Sep-2020,200048843,Continental Landscapes Ltd,"11,079.80"
Barrow Borough Council,Craven house,Buildings repairs and maintenance,17-Sep-2020,200048969,Concept Elevators (UK) Ltd,500.00
Barrow Borough Council,Cyclical maintenance - HRA,Smoke alarms,10-Sep-2020,200048835,Keith Wilson Elec Con Ltd,550.00
Barrow Borough Council,Food safety,Professional fees,10-Sep-2020,200048879,James Andrews Recruitment Solutions,"1,040.00"
Barrow Borough Council,Public conveniences,Building cleaning,10-Sep-2020,200048829,Growing Concerns,"3,531.17"
Barrow Borough Council,Homelessness,Homeless support funding,17-Sep-2020,200048979,Ravenscroft Developments,810.00
Barrow Borough Council,Marina Village,Professional fees,03-Sep-2020,200048782,WYG Environment Planning Transport Ltd,501.00
Barrow Borough Council,Crematorium,Electricity,03-Sep-2020,200048809,NPower,"1,053.97"
Barrow Borough Council,Disabled Facilities Grant,Grants,24-Sep-2020,200049021,ThyssenKrupp Encasa Ltd,"4,320.00"
Barrow Borough Council,Barrow park,Grounds maintenance - schedule of works,03-Sep-2020,200048792,Continental Landscapes Ltd,"21,778.70"
Barrow Borough Council,Barrow town hall,Maintenance contracts - TSU,24-Sep-2020,200049005,Integral UK Ltd,516.52
Barrow Borough Council,Housing repairs control account,Housing repairs invoices,24-Sep-2020,200049008,Howdens Joinery Ltd,724.53
Barrow Borough Council,Office support - admin,Photocopying charges,24-Sep-2020,200049029,Ricoh UK Ltd,750.32
Barrow Borough Council,Cyclical maintenance - HRA,Electrical testing,17-Sep-2020,200048928,Keith Wilson Elec Con Ltd,"2,266.18"
Barrow Borough Council,Forum 28,Maintenance contracts - TSU,24-Sep-2020,200049005,Integral UK Ltd,"1,104.26"
Barrow Borough Council,Information technology,IT training,17-Sep-2020,200048907,Cetus Solutions Ltd,"1,220.00"
Barrow Borough Council,Capitalised Planned Maintenance,Rewires,24-Sep-2020,200049001,Rexel UK Ltd,"1,104.60"
Barrow Borough Council,Disabled Facilities Grant,Grants,17-Sep-2020,200048977,Airey Property Developments & Adaptations,"3,545.00"
Barrow Borough Council,Harding Rise Business Centre,Electricity,03-Sep-2020,200048809,NPower,601.44
Barrow Borough Council,Tenant demand maintenance - HRA,Routine Maintenance,24-Sep-2020,200049016,JML Hardware Ltd,"1,680.00"
Barrow Borough Council,Major works maintenance - HRA,Adaptations,03-Sep-2020,200048815,DLP Services (Northern) Ltd,"1,149.48"
Barrow Borough Council,Cost of collection,Professional fees,24-Sep-2020,200049041,Capacity Grid,"2,835.60"
Barrow Borough Council,Licensing,Software maintenance,10-Sep-2020,200048828,Civica UK Ltd,"2,000.00"
Barrow Borough Council,Craven house,Buildings repairs and maintenance,17-Sep-2020,200048969,Concept Elevators (UK) Ltd,500.00
Barrow Borough Council,Information technology,Professional fees,10-Sep-2020,200048872,Cetus Solutions Ltd,"1,095.00"
Barrow Borough Council,Barrow town hall,Gas,03-Sep-2020,200048772,Corona Energy,554.39
Barrow Borough Council,Insurance holding account,Insurance claims,17-Sep-2020,200048947,Zurich Insurance Group Ltd,750.00
Barrow Borough Council,Housing repairs control account,Housing repairs invoices,10-Sep-2020,200048844,Howdens Joinery Ltd,560.36
Barrow Borough Council,Cost of collection,Business rates collection,10-Sep-2020,200048881,Liberata Uk Ltd,"2,728.66"
Barrow Borough Council,Forum 28,Maintenance contracts - TSU,24-Sep-2020,200049005,Integral UK Ltd,"1,104.26"
Barrow Borough Council,Barrow park,Water,24-Sep-2020,200049034,Water Plus Ltd,828.32
Barrow Borough Council,Allotments,Water,24-Sep-2020,200049034,Water Plus Ltd,"1,498.23"
Barrow Borough Council,Building control,Professional fees,03-Sep-2020,200048784,Iron Mountain (UK) Ltd,"2,805.79"
Barrow Borough Council,Democratic representation and management,Computer hardware purchase,10-Sep-2020,200048825,Scan Computers International Ltd,"5,398.30"
Barrow Borough Council,Voids maintenance - HRA,Void repairs,10-Sep-2020,200048889,Hughes Brothers,"2,570.54"
Barrow Borough Council,Development control,Agency staff,10-Sep-2020,200048861,G2 Recruitment Solutions,981.03
Barrow Borough Council,Capitalised Planned Maintenance,Doors and windows,10-Sep-2020,200048865,Richmond Joiners & Builders Ltd,"3,956.84"
Barrow Borough Council,Dock museum,Maintenance contracts - TSU,24-Sep-2020,200049005,Integral UK Ltd,585.97
Barrow Borough Council,Building control fee earning,Professional fees,03-Sep-2020,200048784,Iron Mountain (UK) Ltd,"4,208.69"
Barrow Borough Council,Craven house,Buildings repairs and maintenance,10-Sep-2020,200048833,Bill Caulfield Electrical,"1,658.47"
Barrow Borough Council,Capitalised Planned Maintenance,Doors and windows,17-Sep-2020,200048908,Richmond Joiners & Builders Ltd,"3,961.34"
Barrow Borough Council,Capitalised Planned Maintenance,Rewires,10-Sep-2020,200048885,Rexel UK Ltd,"1,724.22"
Barrow Borough Council,Housing repairs control account,Housing repairs invoices,24-Sep-2020,200049008,Howdens Joinery Ltd,"1,032.20"
Barrow Borough Council,Cyclical maintenance - HRA,Gas works,10-Sep-2020,200048887,Sure Maintenance,"5,502.71"
Barrow Borough Council,The markets,Buildings repairs and maintenance,17-Sep-2020,200048971,Hughes Brothers,"1,106.11"
Barrow Borough Council,Salthouse Road Depot,Electricity,24-Sep-2020,200049028,NPower,712.63
Barrow Borough Council,Telephones Holding A/C,Telephone charges paid,03-Sep-2020,200048775,Liberata Uk Ltd,635.85
Barrow Borough Council,Forum 28,Maintenance contracts - TSU,24-Sep-2020,200049005,Integral UK Ltd,"1,104.26"
Barrow Borough Council,Coast protection,CAPITA dbs fees,17-Sep-2020,200048972,Capita Property & Infrastructure Ltd,"2,485.00"
Barrow Borough Council,Work in default,WID works,10-Sep-2020,200048831,Sinkfall Recycling,"1,409.99"
Barrow Borough Council,Dock museum,Maintenance contracts - TSU,24-Sep-2020,200049005,Integral UK Ltd,585.97
Barrow Borough Council,Barrow park,Grounds maintenance - other works,24-Sep-2020,200049013,Peter H Smith Limited,"1,588.60"
Barrow Borough Council,Current assets - stocks,Postage stock,24-Sep-2020,200048998,Pitney Bowes Ltd,"1,973.76"
Barrow Borough Council,Dock museum,Maintenance contracts - TSU,24-Sep-2020,200049005,Integral UK Ltd,585.97
Barrow Borough Council,Forum 28,Buildings repairs and maintenance,03-Sep-2020,200048816,TESGL Ltd,688.00
Barrow Borough Council,Legal,Subscriptions,17-Sep-2020,200048975,Thomson Reuters,"4,426.17"
Barrow Borough Council,Barrow town hall,Electricity,03-Sep-2020,200048809,NPower,"2,293.55"
Barrow Borough Council,HRA Estates,Grounds maintenance - schedule of works,17-Sep-2020,200048920,Continental Landscapes Ltd,"5,638.33"
Barrow Borough Council,Forum 28,Water,03-Sep-2020,200048781,Water Plus Ltd,967.43
Barrow Borough Council,Crematorium,Maintenance contracts - venue,10-Sep-2020,200048863,JCH Plumbing & Heating Ltd,"1,195.00"
Barrow Borough Council,Housing Benefits Admin,Benefits private tenants,10-Sep-2020,200048881,Liberata Uk Ltd,"7,522.65"
Barrow Borough Council,Suspense accounts,Receivables refunds,17-Sep-2020,200048959,James Fisher & Sons Plc,"1,800.00"
Barrow Borough Council,Voids maintenance - HRA,Void repairs,10-Sep-2020,200048889,Hughes Brothers,"5,147.71"
Barrow Borough Council,Allotments,Water,24-Sep-2020,200049034,Water Plus Ltd,"1,663.18"
Barrow Borough Council,Tenant demand maintenance - HRA,Gas works,10-Sep-2020,200048887,Sure Maintenance,"15,151.20"
Barrow Borough Council,Dock museum,Gas,03-Sep-2020,200048772,Corona Energy,882.43
Barrow Borough Council,Dock museum,Electricity,03-Sep-2020,200048809,NPower,"2,081.75"
Barrow Borough Council,Forum 28,Maintenance contracts - TSU,24-Sep-2020,200049005,Integral UK Ltd,"1,104.26"
Barrow Borough Council,Forum 28,Buildings repairs and maintenance,17-Sep-2020,200048971,Hughes Brothers,610.30
Barrow Borough Council,Off street car parking,Building cleaning,10-Sep-2020,200048829,Growing Concerns,564.87
Barrow Borough Council,Housing repairs control account,Housing repairs invoices,10-Sep-2020,200048889,Hughes Brothers,"6,531.52"
Barrow Borough Council,Housing repairs control account,Housing repairs invoices,03-Sep-2020,200048773,Hughes Brothers,"9,578.37"
Barrow Borough Council,Barrow Town Deal,Professional fees,10-Sep-2020,200048868,32West Ltd,725.00
Barrow Borough Council,Development control,Agency staff,17-Sep-2020,200048896,G2 Recruitment Solutions,"1,969.14"
Barrow Borough Council,Housing Benefits Admin,Benefits council tenants,10-Sep-2020,200048881,Liberata Uk Ltd,"2,660.93"
Barrow Borough Council,Marina Village,Professional fees,17-Sep-2020,200048972,Capita Property & Infrastructure Ltd,"10,694.59"
Barrow Borough Council,Emergency planning,Other expenses,10-Sep-2020,200048847,Edmundson Electrical Ltd,506.70
Barrow Borough Council,Housing Benefits Admin,Benefits private tenants,10-Sep-2020,200048881,Liberata Uk Ltd,804.66
Barrow Borough Council,Barrow town hall,Maintenance contracts - TSU,24-Sep-2020,200049005,Integral UK Ltd,516.52
Barrow Borough Council,Barrow town hall,Buildings repairs and maintenance,17-Sep-2020,200048971,Hughes Brothers,746.28
Barrow Borough Council,Barrow town hall,Maintenance contracts - TSU,24-Sep-2020,200049005,Integral UK Ltd,516.52
Barrow Borough Council,Capitalised Planned Maintenance,Rewires,10-Sep-2020,200048885,Rexel UK Ltd,556.76
Barrow Borough Council,Disabled Facilities Grant,Grants,17-Sep-2020,200048954,Lee Bowron Glazing Ltd,"3,865.00"
Barrow Borough Council,Major works maintenance - HRA,Repointing Walney,10-Sep-2020,200048895,DLP Services (Northern) Ltd,"1,394.42"
Barrow Borough Council,The markets,Buildings repairs and maintenance,03-Sep-2020,200048776,Biochemica Water Ltd,561.25
Barrow Borough Council,Capitalised Planned Maintenance,Doors and windows,17-Sep-2020,200048967,Wrekin Windows,"3,052.36"
Barrow Borough Council,Disabled Facilities Grant,Grants,17-Sep-2020,200048946,CW Cox & Son (Kendal) Ltd,"4,157.00"
Barrow Borough Council,Barrow Town Deal,Professional fees,10-Sep-2020,200048862,Hatch Associates Ltd,"26,259.00"
Barrow Borough Council,Cemeteries,Grounds maintenance - other works,10-Sep-2020,200048876,Greaves Tree Services Ltd,650.00
Barrow Borough Council,Cemeteries,Grounds maintenance - other works,10-Sep-2020,200048876,Greaves Tree Services Ltd,580.00
Barrow Borough Council,Registration of electors,Telephone - calls,24-Sep-2020,200048995,Democracy Counts Ltd,"1,508.07"
Barrow Borough Council,Parks and open spaces,Grounds maintenance - schedule of works,03-Sep-2020,200048792,Continental Landscapes Ltd,"31,504.87"
Barrow Borough Council,Craven house,Electricity,24-Sep-2020,200049028,NPower,"5,893.69"
Barrow Borough Council,Capitalised Planned Maintenance,Roofs,24-Sep-2020,200048997,SIG Trading Ltd,"2,931.50"
Barrow Borough Council,Voids maintenance - HRA,Void repairs,10-Sep-2020,200048869,UK Environmental & Asbestos Solutions Ltd,670.00
Barrow Borough Council,Parks and open spaces,Grounds maintenance - other works,03-Sep-2020,200048792,Continental Landscapes Ltd,"1,071.39"
Barrow Borough Council,Public conveniences,Buildings repairs and maintenance,17-Sep-2020,200048971,Hughes Brothers,602.89
Barrow Borough Council,Community involvement - HRA,Newsletters,17-Sep-2020,200048917,HSP Milners,"1,315.00"
Barrow Borough Council,Capitalised Planned Maintenance,Roofs,10-Sep-2020,200048895,DLP Services (Northern) Ltd,"15,874.94"
Barrow Borough Council,Marina Village,Professional fees,17-Sep-2020,200048972,Capita Property & Infrastructure Ltd,"14,264.23"
Barrow Borough Council,Streetcare Team,Professional fees,10-Sep-2020,200048875,APSE,"6,600.00"
Barrow Borough Council,Development control,Agency staff,10-Sep-2020,200048861,G2 Recruitment Solutions,987.70
Barrow Borough Council,Off street car parking,Professional fees,17-Sep-2020,200048911,PARK NOW Ltd,593.96
Barrow Borough Council,Capitalised Planned Maintenance,Roofs,24-Sep-2020,200048997,SIG Trading Ltd,"3,763.12"
Barrow Borough Council,Cost of collection,Council tax collection,10-Sep-2020,200048881,Liberata Uk Ltd,"9,095.54"
Barrow Borough Council,Estates management,Buildings repairs and maintenance,17-Sep-2020,200048971,Hughes Brothers,"2,434.34"
Barrow Borough Council,Housing repairs control account,Housing repairs invoices,17-Sep-2020,200048971,Hughes Brothers,"3,769.60"
Barrow Borough Council,Tenant demand maintenance - HRA,Routine Maintenance,03-Sep-2020,200048773,Hughes Brothers,"3,769.60"
Barrow Borough Council,Barrow park,Buildings repairs and maintenance,17-Sep-2020,200048971,Hughes Brothers,632.89
Barrow Borough Council,Food safety,Professional fees,24-Sep-2020,200049031,James Andrews Recruitment Solutions,"1,050.00"
Barrow Borough Council,Corporate management,Solicitors fees,17-Sep-2020,200048931,Brown Barron Solicitors,"1,829.00"
Barrow Borough Council,Craven house,Building cleaning,17-Sep-2020,200048965,Associated Cleaning Contractors,555.28
Barrow Borough Council,Housing repairs control account,Housing repairs invoices,24-Sep-2020,200048993,Dolphin Stairlifts Cumbria,"1,745.00"
Barrow Borough Council,Tenant demand maintenance - HRA,Gas works,10-Sep-2020,200048887,Sure Maintenance,"1,556.96"
Barrow Borough Council,Capitalised Planned Maintenance,Doors and windows,17-Sep-2020,200048967,Wrekin Windows,"7,689.91"
Barrow Borough Council,Housing repairs control account,Housing repairs invoices,24-Sep-2020,200049000,Hughes Brothers,"2,249.75"
Barrow Borough Council,Barrow BID,Professional fees,10-Sep-2020,200048881,Liberata Uk Ltd,"2,231.36"
Barrow Borough Council,Local land charges,Land search charge,10-Sep-2020,200048880,Cumbria County Council,"2,094.00"
Barrow Borough Council,Information technology,Professional fees,10-Sep-2020,200048872,Cetus Solutions Ltd,547.50
Barrow Borough Council,Voids maintenance - HRA,Void repairs,10-Sep-2020,200048889,Hughes Brothers,"3,084.40"
Barrow Borough Council,Voids maintenance - HRA,Void repairs,24-Sep-2020,200049000,Hughes Brothers,"3,536.23"
Barrow Borough Council,Registration of electors,Printing and stationery,24-Sep-2020,200048995,Democracy Counts Ltd,838.55
Barrow Borough Council,Barrow park,Water,24-Sep-2020,200049034,Water Plus Ltd,799.55
Barrow Borough Council,Crematorium,Maintenance contracts - venue,10-Sep-2020,200048848,RJS Waste Management UK Ltd,"1,750.00"
Barrow Borough Council,Capitalised Planned Maintenance,Heating,10-Sep-2020,200048836,Plumbing Trade Supplies,"17,812.01"
Barrow Borough Council,Forum 28,Cleaning materials,10-Sep-2020,200048817,Elior UK Ltd,722.87
Barrow Borough Council,Forum 28,Building cleaning,10-Sep-2020,200048817,Elior UK Ltd,"1,710.36"
Barrow Borough Council,Craven house,Water,17-Sep-2020,200048987,Water Plus Ltd,"1,586.12"
Barrow Borough Council,Harding Rise Business Centre,Gas,10-Sep-2020,200048891,Corona Energy,649.80
Barrow Borough Council,Barrow town hall,Maintenance contracts - TSU,24-Sep-2020,200049005,Integral UK Ltd,516.52
Barrow Borough Council,Local Council Tax Reduction Scheme (LCTRS),LCTRS Admin,10-Sep-2020,200048881,Liberata Uk Ltd,"1,097.26"
Barrow Borough Council,Capitalised Planned Maintenance,Rewires,10-Sep-2020,200048835,Keith Wilson Elec Con Ltd,"1,844.96"
Barrow Borough Council,Barrow town hall,Maintenance contracts - TSU,24-Sep-2020,200049005,Integral UK Ltd,516.52
Barrow Borough Council,Housing repairs control account,Housing repairs invoices,10-Sep-2020,200048844,Howdens Joinery Ltd,"1,202.93"
Barrow Borough Council,Marina Village,Professional fees,03-Sep-2020,200048782,WYG Environment Planning Transport Ltd,"4,292.00"
Barrow Borough Council,Local Council Tax Reduction Scheme (LCTRS),LCTRS Admin,10-Sep-2020,200048881,Liberata Uk Ltd,"9,095.54"
Barrow Borough Council,Cemeteries,Grounds maintenance - other works,10-Sep-2020,200048843,Continental Landscapes Ltd,"1,542.09"
Barrow Borough Council,Forum catering,Catering contract - Forum,10-Sep-2020,200048817,Elior UK Ltd,"1,585.37"
Barrow Borough Council,Forum 28,Building cleaning,24-Sep-2020,200048989,Elior UK Ltd,"2,027.76"
Barrow Borough Council,Playground,Parks & Playgrounds Repairs & Maintenance,03-Sep-2020,200048792,Continental Landscapes Ltd,"1,657.97"
Barrow Borough Council,Public conveniences,Water,17-Sep-2020,200048987,Water Plus Ltd,-718.88
Barrow Borough Council,The markets,Solicitors fees,17-Sep-2020,200048931,Brown Barron Solicitors,899.00
Barrow Borough Council,Craven house,Buildings repairs and maintenance,24-Sep-2020,200049017,Bill Caulfield Electrical,"2,142.66"
Barrow Borough Council,Emergency planning,Hardship Relief/Grant COVID,02-Sep-2020,DD020920,Womens Community Matters,"15,000.00"
Barrow Borough Council,Emergency planning,Hardship Relief/Grant COVID,02-Sep-2020,DD020920,Spring Mount Walney,"9,000.00"
Barrow Borough Council,Emergency planning,Hardship Relief/Grant COVID,02-Sep-2020,DD020920,Leonard Cheshire,"8,000.00"
Barrow Borough Council,Corporate Costs,Bank Charges,09-Sep-2020,DD090920,HSBC,680.57
Barrow Borough Council,Housing Benefits Admin,Postage ,09-Sep-2020,DD090920,Royal Mail,"1,063.21"
Barrow Borough Council,CIS - Inland Revenue Acount,CIS Tax,14-Sep-2020,DD140920,HMRC,"4,094.25"
Barrow Borough Council,Dock Museum,Professional fees,16-Sep-2020,DD160920,Gacko Ltd,900.00
Barrow Borough Council,Emergency Planning,Computer hardware purchase,18-Sep-2020,DD180920,Ebuyer (UK) Ltd,"9,144.00"
Barrow Borough Council,Homelessness,Homeless support funding,23-Sep-2020,DD230920,Redacted Information,752.00
Barrow Borough Council,Corporate Costs,Professional fees,28-Sep-2020,DD280920,Allpay,"3,010.89"
Barrow Borough Council,Corporate Costs,Professional fees,29-Sep-2020,DD290920,Capita Business Services Ltd,"3,907.54"
